bitfinex/quotes_SOLUSD_20240621
["timestamp","ask_amount","ask_price","bid_price","bid_amount"]
[1719003332307,5.9911,133.53,133.47,5.9936]
[1719003332510,5.9921,133.51,133.44,28.36]
[1719003332714,15.3168,133.54,133.45,5.9944]
[1719003332715,0.17,133.52,133.45,5.9944]
[1719003332913,5.9919,133.52,133.46,5.9942]
[1719003333101,6.162,133.51,133.46,5.9942]
[1719003333304,6.162,133.51,133.45,5.9945]
[1719003333900,6.162,133.51,133.46,5.9942]
[1719003334620,6.162,133.51,133.45,5.9945]
[1719003335418,0.17,133.51,133.46,5.9942]
[1719003335806,0.17,133.51,133.47,5.9938]
[1719003336019,0.17,133.51,133.46,5.9941]
[1719003338219,6.1621,133.51,133.46,5.9941]
[1719003339327,0.17,133.51,133.46,5.9941]
[1719003339528,9.62,133.51,133.46,15.4441]
[1719003340614,15.4437,133.48,133.42,5.9958]
[1719003340934,15.4437,133.48,133.43,9.45]
[1719003341108,9.45,133.48,133.43,15.4454]
[1719003342340,15.4435,133.48,133.43,15.4454]
[1719003342929,15.4435,133.48,133.43,9.45]
[1719003343110,5.9938,133.47,133.43,9.45]
[1719003343528,15.4438,133.47,133.42,15.446]
[1719003343920,9.45,133.47,133.42,15.446]
[1719003345836,5.9935,133.48,133.43,5.9956]
[1719003346039,9.45,133.47,133.43,5.9956]
[1719003346216,15.4435,133.48,133.43,15.4456]
[1719003347443,15.4435,133.48,133.43,5.9956]
[1719003349422,9.45,133.47,133.43,5.9956]
[1719003351520,9.45,133.47,133.43,15.4456]
[1719003352055,6.163,133.49,133.44,5.9951]
[1719003352353,9.62,133.48,133.44,5.9951]
[1719003353652,9.62,133.48,133.43,15.4454]
[1719003353817,0.17,133.49,133.44,5.9951]
[1719003354018,9.45,133.5,133.45,15.4444]
[1719003354222,9.45,133.5,133.45,9.45]
[1719003354223,15.4428,133.5,133.45,9.45]
[1719003354419,9.62,133.49,133.44,15.445]
[1719003356950,15.6129,133.49,133.44,9.45]
[1719003357158,9.45,133.48,133.43,5.9954]
[1719003357350,9.45,133.48,133.43,15.4454]
[1719003357351,15.4434,133.48,133.43,15.4454]
[1719003357654,15.4434,133.48,133.43,5.9954]
[1719003358151,5.9917,133.52,133.46,9.45]
[1719003358333,15.4417,133.52,133.47,9.45]
[1719003358721,9.45,133.52,133.47,15.4436]
[1719003359168,15.4416,133.52,133.47,15.4436]
[1719003360525,22.8274,133.53,133.47,15.4436]
[1719003360526,22.4874,133.53,133.47,9.45]
[1719003360731,9.45,133.55,133.5,15.4421]
[1719003362150,28.1125,133.56,133.51,15.4419]
[1719003362356,31.5726,133.56,133.51,15.4419]
[1719003362563,5.9891,133.58,133.49,15.5653]
[1719003362733,15.4391,133.58,133.53,9.45]
[1719003362933,21.7953,133.59,133.53,15.441]
[1719003362934,27.7839,133.59,133.53,15.441]
[1719003363131,27.7839,133.59,133.54,9.45]
[1719003363355,37.2339,133.59,133.54,9.45]
[1719003363651,5.989,133.58,133.54,9.45]
[1719003364856,15.439,133.58,133.53,9.45]
[1719003366756,5.989,133.58,133.54,9.45]
[1719003368443,31.2453,133.59,133.54,9.45]
[1719003368767,9.45,133.6,133.55,15.44]
[1719003368967,5.9876,133.61,133.55,15.44]
[1719003369170,15.4376,133.61,133.56,9.45]
[1719003369766,21.9084,133.63,133.57,9.45]
[1719003370067,27.8951,133.63,133.58,9.45]
[1719003370274,37.3451,133.63,133.58,9.45]
[1719003370447,0.8857401,133.66,133.59,9.45]
[1719003370774,15.4362,133.64,133.59,9.45]
[1719003370937,5.9859,133.65,133.59,15.4383]
[1719003371141,5.9862,133.64,133.59,9.45]
[1719003371362,5.9859,133.65,133.59,15.4384]
[1719003371545,15.4359,133.65,133.6,9.45]
[1719003372270,16.3211401,133.66,133.61,9.45]
[1719003372774,6.8711401,133.66,133.61,9.45]
[1719003372948,0.8857401,133.66,133.62,9.45]
[1719003373149,0.8857401,133.66,133.62,15.4369]
[1719003373347,0.8857401,133.66,133.63,5.9865]
[1719003373572,0.8857401,133.66,133.65,9.45]
[1719003373754,0.8857401,133.66,133.64,15.4361]
[1719003373959,0.8857401,133.66,133.64,9.45]
[1719003374156,10.3357401,133.66,133.58,15.1062]
[1719003374345,10.3357401,133.66,133.61,15.4374]
[1719003374553,0.8857401,133.66,133.61,15.4374]
[1719003374758,0.8857401,133.66,133.61,5.9874]
[1719003374961,0.8857401,133.66,133.62,9.45]
[1719003375173,0.8857401,133.66,133.62,15.437]
[1719003375553,0.8857401,133.66,133.63,9.45]
[1719003375975,0.8857401,133.66,133.58,97.8174]
[1719003375976,0.8857401,133.66,133.64,15.4362]
[1719003376274,0.8857401,133.66,133.65,9.45]
[1719003376449,0.8857401,133.66,133.65,15.4357]
[1719003376979,0.8857401,133.66,133.64,22.0568]
[1719003377281,0.8857401,133.66,133.65,9.45]
[1719003377568,0.8857401,133.66,133.65,15.4357]
[1719003378879,0.8857401,133.66,133.65,30.7401]
[1719003379357,0.8857401,133.66,133.65,21.2901]
[1719003379676,0.8857401,133.66,133.65,6.3257]
[1719003381189,0.8857401,133.66,133.65,21.2901]
[1719003384475,0.8857401,133.66,133.64,16.0708]
[1719003384788,0.8857401,133.66,133.6,5.9877]
[1719003385097,5.9858,133.65,133.57,31.3398]
[1719003385399,6.8711401,133.66,133.58,20.0]
[1719003385697,0.8857401,133.66,133.61,5.9874]
[1719003386473,0.8857401,133.66,133.6,5.9879]
[1719003386474,6.8711401,133.66,133.6,5.9879]
[1719003386678,0.8857401,133.66,133.57,16.3671]
[1719003386880,5.9863,133.64,133.58,5.9888]
[1719003387086,5.9863,133.64,133.59,5.9884]
[1719003387288,6.3259,133.65,133.59,5.9884]
[1719003387890,5.9859,133.65,133.59,5.9884]
[1719003388197,6.8710401,133.66,133.58,15.142]
[1719003388368,6.8710401,133.66,133.61,5.9875]
[1719003388572,0.8857401,133.66,133.58,14.972]
[1719003388789,0.8857401,133.66,133.61,5.9873]
[1719003389193,6.8710401,133.66,133.6,5.9879]
[1719003389394,0.8857401,133.66,133.57,0.17]
[1719003389604,0.8857401,133.66,133.56,34.9743]
[1719003389782,0.17,133.65,133.56,20.0]
[1719003389976,0.34,133.65,133.56,20.0]
[1719003390386,6.3259,133.65,133.59,5.9883]
[1719003390798,0.8857401,133.66,133.6,5.9877]
[1719003391105,5.9858,133.65,133.59,5.9883]
[1719003391283,5.9858,133.65,133.56,14.9735]
[1719003391284,5.9858,133.65,133.6,5.9879]
[1719003391484,5.9858,133.65,133.59,5.9883]
[1719003392371,5.9858,133.65,133.6,5.988]
[1719003392781,7.0411401,133.66,133.6,5.988]
[1719003392991,0.17,133.65,133.6,5.988]
[1719003393182,7.0411401,133.66,133.6,5.988]
[1719003393897,5.9858,133.65,133.6,5.988]
[1719003394073,5.9858,133.65,133.59,5.9883]
[1719003396511,1.0557401,133.66,133.56,5.9897]
[1719003396512,21.8028,133.63,133.56,5.9897]
[1719003396692,5.9878,133.61,133.55,5.9901]
[1719003397378,6.1573,133.62,133.56,5.9897]
[1719003397895,5.9876,133.61,133.55,5.99]
[1719003398510,5.9876,133.61,133.56,5.9897]
[1719003399212,5.9876,133.61,133.55,5.9901]
[1719003399908,21.8028,133.63,133.59,5.988]
[1719003400794,21.8028,133.63,133.58,5.9887]
[1719003402208,21.8028,133.63,133.59,5.9884]
[1719003402609,21.8028,133.63,133.57,5.9889]
[1719003402610,27.7895,133.63,133.57,5.9889]
[1719003402990,27.7895,133.63,133.58,5.9888]
[1719003403399,27.7895,133.63,133.57,5.9892]
[1719003403710,6.1572,133.62,133.56,5.9897]
[1719003404499,0.17,133.61,133.56,5.9897]
[1719003404914,0.17,133.61,133.57,5.9892]
[1719003405094,6.1571,133.62,133.57,5.9892]
[1719003405426,5.9875,133.61,133.56,5.9896]
[1719003406119,0.17,133.6,133.55,5.9902]
[1719003406419,6.3282,133.6,133.54,5.9904]
[1719003406597,6.3282,133.6,133.55,5.9902]
[1719003408325,6.3282,133.6,133.54,5.9905]
[1719003408994,0.34,133.6,133.49,50.0268]
[1719003409199,0.34,133.6,133.52,5.9912]
[1719003409200,5.9893,133.58,133.52,5.9912]
[1719003410126,5.9893,133.58,133.53,5.9911]
[1719003412128,0.17,133.57,133.52,5.9914]
[1719003414602,5.9905,133.55,133.5,5.9923]
[1719003415202,6.1599,133.56,133.5,5.9923]
[1719003415517,0.17,133.55,133.5,5.9923]
[1719003415996,0.17,133.55,133.46,14.9852]
[1719003416200,0.17,133.55,133.49,5.9928]
[1719003416399,0.17,133.56,133.48,5.9932]
[1719003416400,5.991,133.54,133.48,5.9932]
[1719003416835,5.9903,133.55,133.46,14.9852]
[1719003417130,0.17,133.54,133.46,14.9852]
[1719003417916,0.17,133.54,133.49,5.9927]
[1719003418336,0.17,133.54,133.47,5.9934]
[1719003418518,22.5617,133.53,133.48,5.9931]
[1719003419535,22.5617,133.53,133.49,5.9929]
[1719003422711,22.5617,133.53,133.47,14.9837]
[1719003422934,22.5617,133.53,133.51,5.9918]
[1719003423224,22.5617,133.53,133.5,5.9922]
[1719003423738,21.9902,133.56,133.52,5.9911]
[1719003424205,21.9902,133.56,133.49,14.9815]
[1719003424406,21.9902,133.56,133.52,5.9913]
[1719003424732,27.98,133.56,133.51,5.9919]
[1719003424902,21.9902,133.56,133.51,5.9919]
[1719003426846,15.6646,133.56,133.49,14.9815]
[1719003427132,15.6646,133.56,133.53,5.9909]
[1719003427339,27.7284,133.59,133.53,5.9909]
[1719003427504,5.9889,133.58,133.53,5.9909]
[1719003428113,27.7284,133.59,133.53,5.9909]
[1719003428420,15.2224,133.59,133.56,5.9895]
[1719003428622,12.5481,133.62,133.58,5.9886]
[1719003428623,21.9763,133.62,133.58,5.9886]
[1719003428805,21.9763,133.62,133.59,5.9884]
[1719003429421,21.9763,133.62,133.58,5.9888]
[1719003430724,28.6204,133.65,133.59,5.9884]
[1719003431034,28.6204,133.65,133.6,5.9879]
[1719003431232,22.6345,133.65,133.6,5.9879]
[1719003431420,28.6203,133.65,133.59,5.9883]
[1719003431810,22.6345,133.65,133.6,5.9879]
[1719003437117,28.6203,133.65,133.6,5.9879]
[1719003437319,5.9872,133.62,133.53,14.9767]
[1719003437637,0.34,133.64,133.56,5.9896]
[1719003437945,5.9873,133.62,133.57,5.9892]
[1719003438928,5.9873,133.62,133.56,5.9896]
[1719003440145,0.17,133.61,133.51,44.1187]
[1719003440321,5.9889,133.58,133.52,5.9914]
[1719003440835,22.943,133.57,133.48,43.49]
[1719003441041,5.9899,133.56,133.51,5.992]
[1719003441256,28.7625,133.57,133.51,5.992]
[1719003441548,22.603,133.57,133.52,5.9915]
[1719003442144,22.603,133.57,133.51,5.9919]
[1719003442450,5.9898,133.56,133.51,5.9919]
[1719003442627,22.603,133.57,133.53,5.991]
[1719003443726,22.603,133.57,133.54,5.9906]
[1719003444129,22.603,133.57,133.53,5.9909]
[1719003447954,5.9886,133.59,133.53,5.9909]
[1719003448135,5.9874,133.62,133.56,5.9898]
[1719003448455,28.7988,133.63,133.54,15.1465]
[1719003448647,28.7988,133.63,133.57,5.9892]
[1719003448836,5.9872,133.62,133.56,5.9898]
[1719003449543,5.9875,133.61,133.55,5.99]
[1719003452437,0.17,133.62,133.57,5.9892]
[1719003452642,0.34,133.62,133.57,5.9892]
[1719003453040,22.8119,133.63,133.59,5.9883]
[1719003453243,22.8119,133.63,133.6,5.9879]
[1719003453441,22.8119,133.63,133.54,83.854]
[1719003453645,22.8119,133.63,133.61,5.9873]
[1719003453852,22.8119,133.63,133.62,5.9871]
[1719003454068,23.4607401,133.66,133.62,5.9871]
[1719003454547,23.4607401,133.66,133.61,5.9874]
[1719003454751,5.9857,133.65,133.56,43.2243]
[1719003455336,29.6162401,133.66,133.6,5.988]
[1719003455549,0.17,133.65,133.6,5.988]
[1719003458464,23.4607401,133.66,133.62,5.9871]
[1719003458669,23.4607401,133.66,133.63,5.9865]
[1719003459172,0.8857401,133.66,133.64,5.9861]
[1719003462245,0.8857401,133.66,133.63,5.9864]
[1719003462938,0.8857401,133.66,133.62,5.9869]
[1719003464672,0.8857401,133.66,133.63,5.9865]
[1719003465942,0.8857401,133.66,133.6,14.9695]
[1719003466142,0.8857401,133.66,133.62,5.9871]
[1719003468961,0.8857401,133.66,133.57,14.9723]
[1719003469183,0.17,133.65,133.57,14.9723]
[1719003469662,0.17,133.65,133.61,5.9874]
[1719003469845,0.8857401,133.66,133.61,5.9874]
[1719003470048,6.8710401,133.66,133.61,5.9874]
[1719003470451,0.8857401,133.66,133.61,5.9874]
[1719003471043,6.8711401,133.66,133.61,5.9874]
[1719003472171,6.8711401,133.66,133.6,5.9878]
[1719003473475,27.9193,133.64,133.59,5.9884]
[1719003473848,21.933,133.64,133.6,5.988]
[1719003479359,31.363,133.64,133.6,5.988]
[1719003479760,0.8857401,133.66,133.63,9.43]
[1719003479972,0.8857401,133.66,133.65,5.9857]
[1719003481568,0.8857401,133.66,133.63,5.9864]
[1719003481772,10.3157401,133.66,133.6,9.43]
[1719003482077,9.43,133.65,133.6,9.43]
[1719003482387,9.43,133.64,133.6,5.9879]
[1719003482683,9.43,133.63,133.56,30.7111]
[1719003482892,9.43,133.63,133.56,15.7376]
[1719003483194,9.43,133.63,133.58,9.43]
[1719003483374,12.4961,133.65,133.59,5.9882]
[1719003483563,6.5103,133.65,133.56,15.7376]
[1719003483761,6.5103,133.65,133.61,5.9875]
[1719003484563,6.5103,133.65,133.57,14.9725]
[1719003484867,12.4963,133.65,133.59,5.9881]
[1719003486001,12.4963,133.65,133.6,5.9878]
[1719003487709,5.9865,133.64,133.58,5.9888]
[1719003487863,0.34,133.63,133.54,14.9756]
[1719003488185,16.0982,133.62,133.57,5.9892]
[1719003490505,16.0982,133.62,133.56,5.9895]
[1719003490506,22.0855,133.62,133.56,5.9895]
[1719003490870,16.0982,133.62,133.56,14.9744]
[1719003491375,16.0982,133.62,133.58,5.9887]
[1719003492692,16.0982,133.62,133.5,112.7658]
[1719003492898,16.0982,133.62,133.53,14.977]
[1719003493095,22.0854,133.62,133.57,5.9892]
[1719003494674,22.0854,133.62,133.56,5.9896]
[1719003495900,16.0982,133.62,133.54,14.9758]
[1719003496394,16.0982,133.62,133.55,15.1447]
[1719003496565,16.0982,133.62,133.59,5.9882]
[1719003496766,16.0982,133.62,133.58,5.9888]
[1719003497070,16.0982,133.62,133.58,5.9886]
[1719003497296,16.0982,133.62,133.57,5.9891]
[1719003498277,16.0982,133.62,133.56,5.9896]
[1719003499094,5.9878,133.61,133.55,5.9901]
[1719003499272,5.9877,133.61,133.55,5.9901]
[1719003499474,12.3213,133.6,133.54,5.9905]
[1719003500290,6.3332,133.6,133.55,5.9901]
[1719003500806,6.3332,133.6,133.56,5.9897]
[1719003502299,12.3212,133.6,133.52,14.9781]
[1719003502675,6.3332,133.6,133.55,5.99]
[1719003503407,15.7732,133.6,133.55,15.43]
[1719003504688,21.7612,133.6,133.55,15.43]
[1719003504998,15.7732,133.6,133.56,5.9897]
[1719003506308,15.7732,133.6,133.55,15.4301]
[1719003506605,21.7613,133.6,133.55,15.4301]
[1719003507208,15.7732,133.6,133.55,9.44]
[1719003508199,15.7732,133.6,133.55,15.4299]
[1719003508374,21.7612,133.6,133.55,15.4299]
[1719003511191,15.7732,133.6,133.55,15.4299]
[1719003512203,6.3332,133.6,133.55,9.44]
[1719003512377,15.7732,133.6,133.56,5.9896]
[1719003512702,6.3332,133.6,133.56,15.4296]
[1719003514210,16.0982,133.62,133.55,14.9746]
[1719003514408,16.0982,133.62,133.59,15.4282]
[1719003516806,21.8155,133.64,133.59,15.4282]
[1719003516807,15.8292,133.64,133.59,15.4282]
[1719003516988,21.8156,133.64,133.59,9.44]
[1719003517193,9.44,133.63,133.58,9.44]
[1719003517712,21.8156,133.64,133.59,9.44]
[1719003517917,21.8156,133.64,133.59,15.4284]
[1719003518288,9.44,133.63,133.54,0.34]
[1719003518498,9.44,133.61,133.56,9.44]
[1719003518826,9.44,133.59,133.52,14.9779]
[1719003518997,16.1367,133.6,133.55,5.9902]
[1719003519321,25.5767,133.6,133.56,5.9898]
[1719003521101,25.5767,133.6,133.55,9.44]
[1719003521412,9.44,133.59,133.54,5.9905]
[1719003521622,9.44,133.59,133.54,15.4305]
[1719003523228,22.1249,133.6,133.46,67.0244]
[1719003523229,6.5897,133.58,133.46,67.0244]
[1719003523399,9.44,133.55,133.51,5.9919]
[1719003524419,9.44,133.56,133.51,15.4319]
[1719003528224,5.9895,133.57,133.51,15.4319]
[1719003528428,9.44,133.55,133.51,15.4319]
[1719003530512,9.44,133.55,133.52,5.9916]
[1719003530807,9.44,133.53,133.46,21.9944]
[1719003531005,16.3138,133.57,133.51,5.9918]
[1719003531006,5.9899,133.56,133.51,5.9918]
[1719003531230,16.3138,133.57,133.52,5.9915]
[1719003531406,9.44,133.56,133.52,5.9915]
[1719003532016,16.3138,133.57,133.51,14.9799]
[1719003532221,16.4877,133.6,133.54,9.44]
[1719003532422,16.4877,133.6,133.55,5.9901]
[1719003532724,25.9277,133.6,133.55,15.4301]
[1719003533108,31.9157,133.6,133.55,15.4301]
[1719003533533,31.9157,133.6,133.55,5.9901]
[1719003535429,9.44,133.59,133.55,5.9901]
[1719003535730,5.9891,133.58,133.52,5.9913]
[1719003535940,15.4291,133.58,133.53,9.44]
[1719003536228,15.4291,133.58,133.53,15.4311]
[1719003537112,9.44,133.57,133.52,15.4313]
[1719003537635,9.44,133.56,133.51,5.9919]
[1719003537936,9.44,133.56,133.51,15.4319]
[1719003538607,15.4298,133.56,133.51,15.4319]
[1719003538932,9.44,133.56,133.51,15.4319]
[1719003539244,9.44,133.56,133.52,5.9915]
[1719003542012,9.44,133.56,133.51,15.4319]
[1719003544316,9.44,133.56,133.52,5.9915]
[1719003544520,9.44,133.59,133.54,9.44]
[1719003545214,15.4285,133.59,133.54,9.44]
[1719003545413,5.9905,133.55,133.49,5.9927]
[1719003545642,5.9905,133.55,133.46,6.5015]
[1719003545643,9.44,133.55,133.5,15.4321]
[1719003546010,9.44,133.55,133.51,5.9919]
[1719003546613,15.2672,133.57,133.52,5.9915]
[1719003546817,24.7072,133.57,133.53,5.9911]
[1719003547023,15.2672,133.57,133.53,9.44]
[1719003547327,21.2567,133.57,133.51,5.9918]
[1719003547634,9.44,133.56,133.51,15.4318]
[1719003547825,15.4298,133.56,133.51,15.4318]
[1719003548235,9.44,133.56,133.51,15.4318]
[1719003548539,15.2672,133.57,133.53,5.991]
[1719003548734,24.7072,133.57,133.53,5.991]
[1719003548930,24.7072,133.57,133.52,15.4314]
[1719003549246,30.6965,133.57,133.52,15.4314]
[1719003549424,24.7072,133.57,133.52,15.4314]
[1719003549623,15.2672,133.57,133.53,5.9911]
[1719003549939,15.2672,133.57,133.52,15.4314]
[1719003550246,21.2565,133.57,133.52,15.4314]
[1719003550443,30.6965,133.57,133.52,15.4314]
[1719003550643,24.7072,133.57,133.52,15.4314]
[1719003550943,24.7072,133.57,133.52,9.44]
[1719003551133,24.7072,133.57,133.53,5.9911]
[1719003557065,15.2672,133.57,133.53,5.9911]
[1719003557357,24.7072,133.57,133.52,15.4313]
[1719003557773,24.7072,133.57,133.53,5.9909]
[1719003558128,24.7072,133.57,133.52,5.9914]
[1719003561664,24.7072,133.57,133.53,5.9911]
[1719003565054,24.7072,133.57,133.52,5.9914]
[1719003565251,24.7072,133.57,133.52,15.4314]
[1719003565455,24.7072,133.57,133.53,5.9911]
[1719003567353,6.5168,133.58,133.55,5.9902]
[1719003567555,15.428,133.6,133.55,15.4302]
[1719003567759,9.44,133.6,133.56,5.9897]
[1719003569169,9.44,133.58,133.53,9.44]
[1719003569547,15.4286,133.59,133.54,5.9904]
[1719003569879,5.9881,133.6,133.54,15.4304]
[1719003570044,9.44,133.59,133.55,5.99]
[1719003570244,21.9436,133.61,133.56,5.9894]
[1719003570560,21.9436,133.61,133.57,15.429]
[1719003570791,31.3836,133.61,133.57,5.989]
[1719003571080,21.9436,133.61,133.57,5.989]
[1719003571281,21.9436,133.61,133.57,15.429]
[1719003573378,21.9436,133.61,133.57,9.44]
[1719003573776,31.3836,133.61,133.57,5.9893]
[1719003574073,21.9436,133.61,133.57,15.4293]
[1719003575273,22.1437,133.65,133.54,37.6791]
[1719003575491,22.1437,133.65,133.61,5.9872]
[1719003575850,31.5837,133.65,133.61,5.9872]
[1719003576070,51.06967386,133.65,133.6,9.44]
[1719003576252,37.5695,133.65,133.6,9.44]
[1719003576449,22.1437,133.65,133.62,5.9871]
[1719003576861,0.8857401,133.66,133.64,9.44]
[1719003577062,6.8713401,133.66,133.61,9.44]
[1719003577381,16.3113401,133.66,133.61,15.4275]
[1719003577581,16.3113401,133.66,133.61,9.44]
[1719003577964,16.3113401,133.66,133.6,15.4278]
[1719003578281,0.8857401,133.66,133.61,5.9875]
[1719003578780,10.3257401,133.66,133.61,5.9875]
[1719003578987,23.82528456,133.66,133.61,5.9875]
[1719003579280,10.3257401,133.66,133.61,5.9875]
[1719003579481,14.3852027,133.66,133.61,5.9875]
[1719003579678,10.3257401,133.66,133.61,5.9875]
[1719003579984,10.3257401,133.66,133.62,5.987]
[1719003580183,0.8857401,133.66,133.62,5.987]
[1719003580403,10.3257401,133.66,133.62,5.987]
[1719003580598,0.8857401,133.66,133.62,15.427]
[1719003581585,0.8857401,133.66,133.62,9.44]
[1719003581878,0.8857401,133.66,133.56,105.3872]
[1719003581879,15.4258,133.65,133.59,5.988]
[1719003582180,9.44,133.65,133.6,9.44]
[1719003582357,20.37139094,133.66,133.6,9.44]
[1719003582559,10.3257401,133.66,133.61,15.4275]
[1719003583460,16.3110401,133.66,133.61,15.4275]
[1719003583887,16.3110401,133.66,133.61,9.44]
[1719003585083,6.8710401,133.66,133.61,9.44]
[1719003585281,0.8857401,133.66,133.61,15.4274]
[1719003585486,10.3257401,133.66,133.61,15.4274]
[1719003586359,0.8857401,133.66,133.62,9.44]
[1719003586564,0.8857401,133.66,133.63,9.44]
[1719003587786,0.8857401,133.66,133.61,5.9873]
[1719003588101,0.8857401,133.66,133.62,9.44]
[1719003588456,0.8857401,133.66,133.64,9.44]
[1719003588660,0.8857401,133.66,133.65,5.9857]
[1719003588886,0.8857401,133.66,133.65,9.44]
[1719003589092,0.8857401,133.66,133.64,5.9861]
[1719003589263,0.8857401,133.66,133.65,9.44]
[1719003590390,0.8857401,133.66,133.65,15.4257]
[1719003594212,0.8857401,133.66,133.64,9.44]
[1719003594718,0.8857401,133.66,133.64,15.4261]
[1719003595013,0.8857401,133.66,133.63,15.4264]
[1719003595424,0.8857401,133.66,133.59,36.3338]
[1719003595425,10.3257401,133.66,133.58,14.9711]
[1719003595616,10.3257401,133.66,133.61,15.4272]
[1719003595784,10.3257401,133.66,133.62,5.987]
[1719003596180,10.3257401,133.66,133.61,5.9872]
[1719003596411,0.8857401,133.66,133.61,9.44]
[1719003596597,0.8857401,133.66,133.63,5.9866]
[1719003596992,10.3257401,133.66,133.62,5.9869]
[1719003597692,10.3257401,133.66,133.6,5.9876]
[1719003597892,10.3257401,133.66,133.61,9.44]
[1719003598394,16.3111401,133.66,133.61,15.4273]
[1719003599011,10.3257401,133.66,133.61,15.4273]
[1719003599812,9.44,133.65,133.6,5.9879]
[1719003600118,9.44,133.64,133.6,5.9879]
[1719003600285,6.8712401,133.66,133.61,5.9875]
[1719003600486,10.3257401,133.66,133.61,9.44]
[1719003600717,10.3257401,133.66,133.62,5.987]
[1719003602022,0.8857401,133.66,133.62,5.987]
[1719003602313,10.3257401,133.66,133.62,5.987]
[1719003602500,0.8857401,133.66,133.6,37.9877]
[1719003602702,0.8857401,133.66,133.65,15.4257]
[1719003603222,0.3857401,133.66,133.65,15.4257]
[1719003608312,0.3857401,133.66,133.62,14.9676]
[1719003608520,0.3857401,133.66,133.64,5.9861]
[1719003610211,0.3857401,133.66,133.63,16.92096636]
[1719003610397,0.3857401,133.66,133.64,5.9861]
[1719003610596,0.3857401,133.66,133.65,5.9857]
[1719003610812,0.3857401,133.66,133.65,15.4257]
[1719003611496,0.3857401,133.66,133.65,30.3901]
[1719003611820,13.49785813,133.71,133.7,5.9835]
[1719003612003,13.49785813,133.71,133.7,15.4235]
[1719003612191,13.49785813,133.75,133.71,5.9828]
[1719003612392,35.63655813,133.76,133.72,5.9825]
[1719003612593,35.63655813,133.76,133.73,5.9821]
[1719003612792,13.49785813,133.75,133.73,15.4221]
[1719003613033,22.1387,133.76,133.73,15.4221]
[1719003613227,13.49785813,133.76,133.74,5.9817]
[1719003613417,19.55535813,133.79,133.74,5.9817]
[1719003614107,5.9802,133.78,133.72,5.9825]
[1719003614324,14.9521,133.76,133.67,5.9847]
[1719003614509,22.0635,133.73,133.65,20.0]
[1719003614701,22.0635,133.73,133.67,5.9846]
[1719003615122,5.9826,133.72,133.67,5.9846]
[1719003615333,22.0635,133.73,133.67,5.9846]
[1719003616040,16.0812,133.73,133.65,14.9634]
[1719003616343,19.47598556,133.75,133.69,5.9837]
[1719003616539,16.0812,133.77,133.68,5.9844]
[1719003616540,5.9818,133.74,133.68,5.9844]
[1719003616835,5.982,133.74,133.68,5.9844]
[1719003617510,5.9822,133.73,133.67,5.9846]
[1719003617826,5.9822,133.73,133.68,5.9843]
[1719003618140,13.49349598,133.76,133.71,5.983]
[1719003618303,16.0812,133.77,133.71,5.983]
[1719003618503,5.9809,133.76,133.7,5.9833]
[1719003619012,22.0616,133.77,133.72,5.9826]
[1719003619207,16.0812,133.77,133.72,5.9826]
[1719003620008,16.0812,133.77,133.68,37.4801]
[1719003620009,16.0812,133.77,133.68,14.9601]
[1719003620339,22.0617,133.77,133.71,5.983]
[1719003620536,5.9808,133.76,133.71,5.983]